bitfinex-derivatives/quotes_BTCF0:USTF0_20241226
["timestamp","ask_amount","ask_price","bid_price","bid_amount"]
[1735201004210,0.041426,96639.0,96630.0,0.37000832]
[1735201004496,0.23757605,96641.0,96630.0,0.36944832]
[1735201004801,0.23757605,96641.0,96621.0,0.041433]
[1735201005410,0.001,96639.0,96630.0,0.003]
[1735201006108,0.001,96639.0,96631.0,0.008]
[1735201006702,0.001,96639.0,96630.0,0.007]
[1735201007108,0.001,96641.0,96630.0,0.004]
[1735201007304,0.001,96641.0,96639.0,0.041426]
[1735201007511,0.01030083,96671.0,96640.0,0.1665]
[1735201007809,0.23757605,96680.0,96641.0,0.1736]
[1735201008015,0.04141,96676.0,96641.0,0.1736]
[1735201008200,0.23757605,96670.0,96641.0,0.4736]
[1735201008407,0.23757605,96680.0,96641.0,0.4736]
[1735201008610,0.041409,96679.0,96654.0,0.041419]
[1735201008912,0.23757605,96690.0,96641.0,0.4736]
[1735201009099,0.04141,96677.0,96653.0,0.041419]
[1735201009417,0.041411,96674.0,96653.0,0.041419]
[1735201009715,0.001,96671.0,96653.0,0.041419]
[1735201009905,0.001,96671.0,96641.0,0.1736]
[1735201010106,0.001,96671.0,96643.0,0.041424]
[1735201010418,0.041413,96670.0,96653.0,0.04242]
[1735201010801,0.001,96677.0,96644.0,0.1755]
[1735201011007,0.041419,96655.0,96653.0,0.002]
[1735201011408,0.041421,96651.0,96643.0,0.001]
[1735201011614,1.5,96650.0,96643.0,0.001]
[1735201012221,0.041424,96644.0,96643.0,0.001]
[1735201012521,1.5,96650.0,96643.0,0.001]
[1735201012522,1.50052001,96650.0,96643.0,0.001]
[1735201012817,0.0032371,96649.0,96633.0,0.041428]
[1735201013004,0.0032371,96648.0,96637.0,0.041426]
[1735201013205,0.0032371,96647.0,96637.0,0.041426]
[1735201013409,0.00323706,96646.0,96637.0,0.041426]
[1735201013610,1.50152001,96650.0,96643.0,0.001]
[1735201013818,1.501,96650.0,96643.0,0.002]
[1735201014316,0.001,96648.0,96643.0,0.001]
[1735201014820,0.001,96650.0,96643.0,0.002]
[1735201015008,0.001,96650.0,96643.0,0.001]
[1735201015605,1.501,96650.0,96643.0,0.001]
[1735201015809,0.041424,96645.0,96643.0,0.001]
[1735201016215,0.041424,96645.0,96637.0,0.002]
[1735201016419,0.041424,96645.0,96643.0,0.001]
[1735201016617,0.041424,96645.0,96643.0,0.002]
[1735201016810,0.041427,96637.0,96623.0,0.041433]
[1735201017013,0.041428,96636.0,96623.0,0.041433]
[1735201017213,0.04143,96630.0,96614.0,0.041436]
[1735201017514,0.041426,96639.0,96637.0,0.003]
[1735201017717,0.00323743,96638.0,96637.0,0.003]
[1735201018514,0.00323743,96638.0,96637.0,0.001]
[1735201019121,0.001,96636.0,96623.0,0.005]
[1735201019328,0.00323743,96635.0,96623.0,0.005]
[1735201019715,0.00323743,96635.0,96623.0,0.004]
[1735201019914,0.00323743,96634.0,96623.0,0.004]
[1735201020117,0.00323764,96633.0,96623.0,0.004]
[1735201020317,0.00323764,96632.0,96623.0,0.005]
[1735201020621,0.00323781,96631.0,96623.0,0.001]
[1735201020828,0.01008133,96630.0,96623.0,0.001]
[1735201021019,0.00323781,96629.0,96623.0,0.001]
[1735201021321,0.00323781,96628.0,96597.0,0.041444]
[1735201021528,0.041432,96624.0,96623.0,0.001]
[1735201021826,1.54466981,96624.0,96623.0,0.002]
[1735201022425,1.54466981,96624.0,96597.0,0.041444]
[1735201022426,0.041436,96616.0,96600.0,0.105]
[1735201022626,0.041437,96614.0,96600.0,0.105]
[1735201023227,0.00323812,96613.0,96600.0,0.105]
[1735201023416,0.00323818,96612.0,96600.0,0.105]
[1735201023617,0.041437,96614.0,96600.0,0.105]
[1735201023818,0.00323818,96613.0,96600.0,0.105]
[1735201024118,0.041437,96614.0,96600.0,0.1]
[1735201024119,0.042437,96614.0,96600.0,0.1]
[1735201024320,0.00323818,96613.0,96600.0,0.1]
[1735201024518,0.042437,96614.0,96600.0,0.1]
[1735201024726,0.00323818,96613.0,96600.0,0.1]
[1735201025026,0.041438,96611.0,96600.0,0.105]
[1735201025330,0.001,96614.0,96606.0,0.04144]
[1735201026515,0.001,96614.0,96613.0,0.041437]
[1735201027118,0.1615,96633.0,96617.0,0.041435]
[1735201027316,0.00323759,96632.0,96617.0,0.041435]
[1735201027529,0.00323759,96631.0,96617.0,0.041435]
[1735201027731,0.00323759,96631.0,96606.0,0.002]
[1735201027732,0.001,96614.0,96606.0,0.04344]
[1735201027934,0.001,96614.0,96606.0,0.04144]
[1735201028322,0.1615,96633.0,96600.0,0.1]
[1735201028518,0.00323787,96632.0,96600.0,0.1]
[1735201028729,0.041434,96621.0,96602.0,0.041441]
[1735201028923,0.00323787,96620.0,96600.0,0.1]
[1735201029122,0.00323787,96620.0,96606.0,0.04144]
[1735201030229,0.041436,96615.0,96600.0,0.1]
[1735201030532,0.00423787,96614.0,96600.0,0.1]
[1735201030830,0.00323787,96613.0,96600.0,0.1]
[1735201031027,0.00323787,96613.0,96600.0,0.144442]
[1735201031334,0.00323807,96612.0,96600.0,0.144442]
[1735201031632,0.041436,96615.0,96600.0,0.144442]
[1735201031633,0.00323807,96611.0,96600.0,0.141442]
[1735201031833,0.01062468,96628.0,96600.0,0.103]
[1735201031834,0.24121281,96610.0,96600.0,0.103]
[1735201032029,0.001,96614.0,96600.0,0.103]
[1735201032030,0.00323807,96609.0,96600.0,0.103]
[1735201032235,0.00323807,96608.0,96600.0,0.103]
[1735201032424,0.00323807,96607.0,96600.0,0.103]
[1735201032623,0.00323807,96606.0,96600.0,0.103]
[1735201032829,0.00323807,96605.0,96600.0,0.103]
[1735201033037,0.00323807,96604.0,96600.0,0.103]
[1735201033238,0.04468007,96603.0,96600.0,0.103]
[1735201033536,0.00323807,96602.0,96600.0,0.103]
[1735201033829,0.00323807,96601.0,96600.0,0.103]
[1735201034131,0.0032382,96601.0,96600.0,0.103]
[1735201034634,0.00323813,96601.0,96600.0,0.103]
[1735201034823,0.00323813,96601.0,96600.0,0.1]
[1735201035023,0.00323813,96601.0,96600.0,0.103]
[1735201035226,0.001,96601.0,96600.0,0.103]
[1735201035827,0.001,96601.0,96590.0,0.30773319]
[1735201035828,0.041448,96588.0,96587.0,0.0155]
[1735201036019,0.041451,96581.0,96579.0,0.25819238]
[1735201036225,0.041451,96581.0,96580.0,0.00017]
[1735201036526,0.04469023,96581.0,96580.0,0.34472296]
[1735201037324,0.04569023,96581.0,96580.0,0.34472296]
[1735201038033,0.04669023,96581.0,96580.0,0.00717]
[1735201038328,0.04669023,96581.0,96551.0,0.041464]
[1735201038329,0.041454,96573.0,96551.0,0.041464]
[1735201038534,0.041454,96573.0,96552.0,0.041463]
[1735201038535,0.15460621,96561.0,96552.0,0.041463]
[1735201038734,0.15460621,96561.0,96554.0,0.041462]
[1735201039633,0.15460621,96561.0,96549.0,0.041464]
[1735201039837,0.15460621,96561.0,96546.0,0.3441]
[1735201040231,0.15460621,96570.0,96546.0,0.3441]
[1735201040427,0.001,96573.0,96560.0,0.15460621]
[1735201040636,0.001,96573.0,96572.0,0.041455]
[1735201040840,0.001,96581.0,96572.0,0.041455]
[1735201041036,0.01071552,96598.0,96573.0,0.3344]
[1735201041339,0.01012103,96597.0,96573.0,0.3344]
[1735201041541,0.041449,96586.0,96573.0,0.3344]
[1735201041741,0.00323891,96585.0,96573.0,0.3344]
[1735201041943,0.04468791,96585.0,96573.0,0.3344]
[1735201042144,0.00323891,96584.0,96573.0,0.3344]
[1735201042339,0.00323891,96583.0,96573.0,0.3344]
[1735201042649,0.48389109,96604.0,96572.0,0.001]
[1735201042650,0.00323891,96582.0,96572.0,0.001]
[1735201042843,0.00423924,96581.0,96572.0,0.001]
[1735201043032,0.00323924,96580.0,96572.0,0.001]
[1735201043229,0.00323918,96579.0,96572.0,0.001]
[1735201043541,0.00323918,96579.0,96570.0,0.15460621]
[1735201043542,0.001,96583.0,96573.0,0.003]
[1735201043839,0.04469015,96582.0,96573.0,0.003]
[1735201044139,0.041451,96580.0,96573.0,0.003]
[1735201044362,0.04469115,96579.0,96573.0,0.003]
[1735201044657,0.15460621,96600.0,96560.0,0.15460621]
[1735201044658,0.00323915,96578.0,96560.0,0.15460621]
[1735201044965,0.001,96583.0,96579.0,0.041451]
[1735201045265,0.001,96583.0,96580.0,0.041451]
[1735201045858,0.001,96583.0,96573.0,0.165]
[1735201046063,0.04245,96583.0,96573.0,0.165]
[1735201046258,0.001,96580.0,96573.0,0.165]
[1735201046454,0.001,96580.0,96574.0,0.041454]
[1735201046862,0.001,96583.0,96574.0,0.041454]
[1735201047460,0.001,96580.0,96574.0,0.041454]
[1735201048359,0.001,96580.0,96575.0,0.041453]
[1735201048966,0.041448,96587.0,96575.0,0.041453]
[1735201049160,0.001,96583.0,96577.0,0.041452]
[1735201049462,0.00323887,96582.0,96577.0,0.041452]
[1735201049664,0.001,96580.0,96577.0,0.041452]
[1735201050466,0.002,96583.0,96577.0,0.041452]
[1735201050662,0.00423887,96582.0,96577.0,0.045452]
[1735201050869,0.001,96582.0,96577.0,0.045452]
[1735201051168,0.001,96580.0,96577.0,0.045452]
[1735201051468,0.002,96580.0,96577.0,0.045452]
[1735201052458,0.001,96580.0,96577.0,0.045452]
[1735201052663,0.00323892,96579.0,96577.0,0.004]
[1735201052859,0.00323892,96578.0,96577.0,0.004]
[1735201053056,0.00323892,96579.0,96577.0,0.004]
[1735201053263,0.00323892,96578.0,96577.0,0.004]
[1735201054369,0.001,96579.0,96577.0,0.004]
[1735201054574,0.00323897,96578.0,96577.0,0.004]
[1735201055263,0.00423897,96578.0,96577.0,0.004]
[1735201055873,0.00423896,96578.0,96577.0,0.004]
[1735201056170,0.001,96578.0,96577.0,0.004]
[1735201056379,0.04145,96583.0,96577.0,0.004]
[1735201056675,0.001,96578.0,96577.0,0.004]
[1735201057173,0.041442,96601.0,96577.0,0.004]
[1735201057364,0.00323851,96600.0,96591.0,0.041446]
[1735201057669,0.00323851,96599.0,96591.0,0.041446]
[1735201057877,0.00323851,96598.0,96593.0,0.041445]
[1735201058071,0.12030838,96612.0,96580.0,0.15460621]
[1735201058072,0.00323851,96597.0,96580.0,0.15460621]
[1735201058263,0.01221049,96609.0,96580.0,0.15460621]
[1735201058570,0.001,96583.0,96581.0,0.041451]
[1735201058772,0.001,96583.0,96578.0,0.1754]
[1735201058977,0.001,96583.0,96577.0,0.003]
[1735201059162,0.05369497,96609.0,96577.0,0.003]
[1735201059163,0.001,96597.0,96577.0,0.003]
[1735201059475,0.041447,96589.0,96577.0,0.003]
[1735201059678,0.041447,96589.0,96586.0,0.2470824]
[1735201060374,0.05203622,96595.0,96586.0,0.2470824]
[1735201060571,0.041446,96593.0,96586.0,0.2470824]
[1735201060773,0.00323874,96592.0,96587.0,0.041448]
[1735201060972,0.04468474,96592.0,96587.0,0.041448]
[1735201061173,0.00323878,96591.0,96587.0,0.041448]
[1735201061475,0.041444,96596.0,96589.0,0.041447]
[1735201061668,0.00323876,96595.0,96589.0,0.041447]
[1735201061977,0.001,96597.0,96586.0,0.002]
[1735201062276,0.001,96597.0,96594.0,0.041445]
[1735201062575,0.01177337,96609.0,96596.0,0.041444]
[1735201062763,0.01177337,96609.0,96598.0,0.041443]
[1735201062764,0.00155402,96609.0,96598.0,0.041443]
[1735201062967,0.00323859,96608.0,96598.0,0.041443]
[1735201063168,0.00323859,96607.0,96598.0,0.041443]
[1735201063471,0.00323859,96606.0,96589.0,0.041447]
[1735201063672,0.00323859,96605.0,96589.0,0.041447]
[1735201063870,0.00323859,96604.0,96598.0,0.041443]
[1735201064071,0.00155402,96609.0,96600.0,0.041443]
[1735201064270,0.00323835,96608.0,96600.0,0.041443]
[1735201064580,0.041441,96605.0,96593.0,0.041445]
[1735201064775,0.00323835,96604.0,96591.0,0.2470824]
[1735201065076,0.041441,96605.0,96595.0,0.041445]
[1735201065279,0.00255402,96609.0,96591.0,0.2470824]
[1735201065280,0.00323835,96604.0,96591.0,0.2470824]
[1735201065580,0.041446,96593.0,96591.0,0.22590218]
[1735201065774,0.16873835,96592.0,96591.0,0.22590218]
[1735201065980,0.17561384,96592.0,96589.0,0.002]
[1735201066173,0.00323835,96591.0,96582.0,0.04145]
[1735201066377,0.00323835,96590.0,96580.0,0.15460621]
[1735201066686,0.00323835,96589.0,96585.0,0.041449]
[1735201066881,0.05179841,96599.0,96585.0,0.041449]
[1735201067082,0.00323874,96598.0,96591.0,0.001]
[1735201067278,0.00323874,96597.0,96591.0,0.001]
[1735201067581,0.00323874,96596.0,96591.0,0.001]
[1735201067782,0.00323874,96595.0,96587.0,0.041448]
[1735201068087,0.00323874,96594.0,96585.0,0.002]
[1735201068274,0.001,96592.0,96585.0,0.002]
[1735201068476,0.00323874,96591.0,96585.0,0.002]
[1735201069292,0.00323874,96591.0,96580.0,0.041451]
[1735201069476,0.041445,96594.0,96574.0,0.31000382]
[1735201069477,0.00323876,96590.0,96574.0,0.31000382]
[1735201069672,0.00323876,96589.0,96572.0,0.31000382]
[1735201069876,0.041447,96590.0,96576.0,0.041453]
[1735201070077,0.00323878,96589.0,96576.0,0.041453]
[1735201070286,0.00323878,96588.0,96585.0,0.002]
[1735201070497,0.00323878,96587.0,96585.0,0.002]
[1735201070687,0.00323878,96586.0,96585.0,0.002]
[1735201070986,0.00323878,96586.0,96582.0,0.04145]
[1735201071183,0.00323878,96585.0,96582.0,0.04145]
[1735201071383,0.001,96591.0,96582.0,0.04145]
[1735201071588,0.00323878,96590.0,96582.0,0.04145]
[1735201071784,0.00323878,96589.0,96583.0,0.04145]
[1735201071984,0.00323878,96588.0,96583.0,0.04145]
[1735201072177,0.00323878,96587.0,96576.0,0.004]
[1735201072375,0.09023287,96596.0,96586.0,0.041449]
[1735201072579,0.00323861,96595.0,96587.0,0.1773]
[1735201072783,0.09023287,96596.0,96587.0,0.1773]
[1735201072986,0.001,96589.0,96587.0,0.1773]
[1735201073184,0.001,96589.0,96588.0,0.041448]
[1735201074489,0.001,96596.0,96588.0,0.041448]
[1735201074989,0.001,96596.0,96587.0,0.1773]
[1735201074990,0.041442,96602.0,96587.0,0.1773]
[1735201075191,0.00323848,96601.0,96589.0,0.041447]
[1735201075491,0.00323848,96600.0,96589.0,0.041447]
[1735201075693,0.001,96596.0,96589.0,0.041447]
[1735201076283,0.001,96601.0,96593.0,0.041445]
[1735201076495,0.00323847,96600.0,96593.0,0.041445]
[1735201076683,0.00323847,96599.0,96593.0,0.041445]
[1735201076886,0.00323847,96598.0,96593.0,0.041445]
[1735201077087,0.00323846,96597.0,96589.0,0.001]
[1735201077390,0.001,96601.0,96589.0,0.001]
[1735201077590,0.001,96601.0,96599.0,0.041443]
[1735201077781,0.09023287,96608.0,96599.0,0.041443]
[1735201077982,0.00323831,96607.0,96599.0,0.041443]
[1735201078186,0.00323832,96606.0,96599.0,0.041443]
[1735201078390,0.00323832,96605.0,96600.0,0.1678]
[1735201078597,0.09023287,96608.0,96589.0,0.002]
[1735201078897,0.041442,96602.0,96589.0,0.002]
[1735201079287,0.041442,96602.0,96599.0,0.18615244]
[1735201079599,0.04468035,96601.0,96599.0,0.18615244]
[1735201079797,0.00323835,96600.0,96599.0,0.18615244]
[1735201079985,0.001,96605.0,96599.0,0.18615244]
[1735201080191,0.00323836,96604.0,96603.0,0.041441]
[1735201080893,0.00323805,96604.0,96603.0,0.041441]
[1735201081080,0.001,96605.0,96603.0,0.041441]
[1735201081391,0.00155402,96609.0,96596.0,0.18615244]
[1735201081592,0.001,96602.0,96599.0,0.15460621]
[1735201081782,0.001,96602.0,96600.0,0.041443]
[1735201081986,0.00155402,96609.0,96605.0,0.04144]
[1735201082191,0.12030838,96615.0,96599.0,0.10294625]
[1735201082392,0.00323804,96614.0,96608.0,0.18615244]
[1735201082587,0.00323804,96613.0,96608.0,0.18615244]
[1735201082788,0.00323804,96612.0,96608.0,0.18615244]
[1735201083096,0.12030838,96627.0,96608.0,0.18615244]
[1735201083097,0.00323804,96611.0,96608.0,0.18615244]
[1735201083291,0.041444,96597.0,96596.0,0.31000382]
[1735201083487,0.0446824,96597.0,96596.0,0.31000382]
[1735201084793,0.0456824,96597.0,96596.0,0.31000382]
[1735201084988,0.05257385,96597.0,96596.0,0.31000382]
[1735201085193,0.05257385,96597.0,96588.0,0.37183853]
[1735201085194,0.041447,96589.0,96588.0,0.00056]
[1735201085392,0.041448,96587.0,96575.0,0.31000382]
[1735201085588,0.0032384,96586.0,96575.0,0.31000382]
[1735201086190,0.001,96597.0,96575.0,0.31000382]
[1735201086191,0.0032391,96585.0,96575.0,0.31000382]
[1735201086387,0.0032391,96585.0,96569.0,0.37191853]
[1735201086388,0.041451,96582.0,96569.0,0.00064]
[1735201086588,0.0032391,96581.0,96568.0,0.041456]
[1735201086897,0.00323911,96580.0,96575.0,0.004]
[1735201087198,0.00323911,96579.0,96576.0,0.041453]
[1735201087388,0.00323904,96578.0,96576.0,0.041453]
[1735201087586,0.00323904,96577.0,96575.0,0.004]
[1735201087789,0.001,96586.0,96575.0,0.004]
[1735201087989,0.00323911,96585.0,96575.0,0.004]
[1735201088192,0.00323911,96585.0,96564.0,0.31000382]
[1735201088193,0.001,96580.0,96564.0,0.31000382]
[1735201088396,0.041458,96565.0,96564.0,0.31000382]
[1735201088593,0.04469746,96565.0,96564.0,0.31000382]
[1735201088798,0.00323946,96565.0,96564.0,0.31000382]
[1735201089204,0.0032395,96565.0,96564.0,0.31000382]
[1735201089498,0.00323951,96565.0,96564.0,0.31000382]
[1735201089705,0.00423951,96565.0,96564.0,0.31400382]
[1735201090296,0.00423951,96565.0,96564.0,0.31000382]
[1735201090297,0.001,96565.0,96564.0,0.31000382]
[1735201090503,0.041457,96566.0,96564.0,0.003]
[1735201091084,0.041454,96574.0,96564.0,0.003]
[1735201091286,0.04469451,96573.0,96564.0,0.003]
[1735201091488,0.041456,96570.0,96564.0,0.003]
[1735201091688,0.001,96566.0,96564.0,0.003]
[1735201092101,0.041452,96578.0,96561.0,0.041459]
[1735201092303,0.001,96574.0,96561.0,0.041459]
[1735201092803,0.001,96566.0,96557.0,0.041461]
[1735201093892,0.001,96566.0,96551.0,0.1668]
[1735201094293,0.001,96574.0,96558.0,0.04146]
[1735201094502,0.00323949,96573.0,96558.0,0.04146]
[1735201094692,0.00323949,96572.0,96558.0,0.04146]
[1735201094888,0.15455462,96580.0,96558.0,0.04146]
[1735201094889,0.001,96566.0,96558.0,0.04146]
[1735201095503,0.041455,96573.0,96558.0,0.04146]
[1735201095805,0.041455,96572.0,96557.0,0.001]
[1735201096501,0.15455462,96570.0,96558.0,0.001]
[1735201096705,0.041459,96562.0,96558.0,0.001]
[1735201096999,0.001,96566.0,96558.0,0.009]
[1735201097195,0.00323963,96565.0,96558.0,0.009]
[1735201097387,0.00323963,96564.0,96558.0,0.009]
[1735201097596,0.15455462,96570.0,96558.0,0.001]
[1735201097806,0.19701062,96570.0,96558.0,0.01]
[1735201098302,0.001,96565.0,96558.0,0.009]
[1735201099000,0.19601062,96570.0,96558.0,0.009]
[1735201099001,0.19701062,96570.0,96558.0,0.009]
[1735201099207,0.041456,96569.0,96558.0,0.011]
[1735201099803,0.041456,96569.0,96558.0,0.009]
[1735201100006,0.041456,96569.0,96558.0,0.011]
[1735201100402,0.001,96565.0,96558.0,0.011]
[1735201101006,0.042456,96569.0,96558.0,0.011]
[1735201102308,0.041457,96567.0,96558.0,0.011]
[1735201103107,0.001,96565.0,96558.0,0.011]
[1735201103707,0.041457,96567.0,96558.0,0.002]
[1735201103897,0.041457,96567.0,96558.0,0.011]
[1735201103898,0.042457,96567.0,96558.0,0.011]
[1735201104300,0.041457,96567.0,96558.0,0.002]
[1735201104504,0.001,96565.0,96558.0,0.011]
[1735201104703,0.001,96565.0,96558.0,0.009]
[1735201104912,0.041457,96567.0,96558.0,0.002]
[1735201105099,0.042457,96567.0,96558.0,0.011]
[1735201105505,0.042457,96567.0,96558.0,0.009]
[1735201105816,0.042457,96567.0,96558.0,0.011]
[1735201106401,0.041457,96567.0,96558.0,0.002]
[1735201106694,0.001,96565.0,96558.0,0.01]
[1735201107009,0.041457,96567.0,96558.0,0.002]
[1735201107201,0.042457,96567.0,96558.0,0.009]
[1735201108210,0.041458,96565.0,96558.0,0.009]
[1735201108404,0.041459,96563.0,96558.0,0.009]
[1735201109710,0.041459,96563.0,96558.0,0.01]
[1735201110010,0.04146,96561.0,96558.0,0.01]
[1735201111303,0.04146,96561.0,96558.0,0.002]
[1735201111504,0.04246,96561.0,96558.0,0.01]
[1735201111814,0.00323978,96560.0,96558.0,0.008]
[1735201112015,0.00323978,96559.0,96558.0,0.01]
[1735201113117,0.00323986,96559.0,96558.0,0.011]
[1735201113513,0.00423986,96559.0,96558.0,0.011]
[1735201115912,0.00423986,96559.0,96558.0,0.009]
[1735201116120,0.00423986,96559.0,96558.0,0.011]
[1735201116920,0.0110943,96559.0,96558.0,0.011]
[1735201117916,0.04569986,96559.0,96558.0,0.011]
[1735201118112,0.05255191,96559.0,96558.0,0.011]
[1735201118308,0.12030838,96568.0,96558.0,0.011]
[1735201118513,0.12030838,96568.0,96566.0,0.041457]
[1735201118814,0.14997943,96576.0,96567.0,0.176]
[1735201119519,0.16023751,96576.0,96558.0,0.011]
[1735201119720,0.001,96568.0,96566.0,0.007]
[1735201119921,0.042457,96568.0,96566.0,0.007]
[1735201120421,0.041457,96568.0,96567.0,0.007]
[1735201120923,0.042457,96568.0,96566.0,0.007]
[1735201121611,0.042457,96568.0,96566.0,0.008]
[1735201121811,0.001,96568.0,96566.0,0.008]
[1735201122319,0.041455,96571.0,96566.0,0.001]
[1735201122518,0.001,96568.0,96567.0,0.007]
[1735201122915,0.041454,96575.0,96566.0,0.001]
[1735201123121,0.001,96568.0,96566.0,0.008]
[1735201123619,0.001,96568.0,96567.0,0.007]
[1735201125318,0.001,96568.0,96566.0,0.001]
[1735201125319,0.001,96568.0,96566.0,0.008]
[1735201125617,0.001,96568.0,96566.0,0.007]
[1735201125821,0.041454,96574.0,96561.0,0.041459]
[1735201126021,0.001,96568.0,96567.0,0.007]
[1735201126411,0.001,96568.0,96566.0,0.007]
[1735201126925,0.01061947,96575.0,96562.0,0.041459]
[1735201127112,0.041458,96565.0,96561.0,0.25739025]
[1735201127512,0.1949,96573.0,96561.0,0.25739025]
[1735201127709,1.50518363,96572.0,96561.0,0.25739025]
[1735201127929,0.236355,96573.0,96561.0,0.25739025]
[1735201127930,0.00518363,96571.0,96561.0,0.25739025]
[1735201128225,0.00518363,96572.0,96562.0,0.001]
[1735201128427,1.62090142,96571.0,96562.0,0.001]
[1735201128623,0.001,96568.0,96566.0,0.007]
[1735201129725,0.00518362,96569.0,96561.0,0.011]
[1735201130320,0.00996396,96568.0,96561.0,0.011]
[1735201130533,0.00996396,96567.0,96566.0,0.001]
[1735201131239,0.00996396,96567.0,96561.0,0.009]
[1735201131530,0.00996396,96566.0,96561.0,0.002]
[1735201131736,0.00996396,96565.0,96561.0,0.002]
[1735201131938,0.00323976,96564.0,96561.0,0.002]
[1735201132238,0.00518362,96566.0,96553.0,0.24839025]
[1735201132239,0.00323976,96563.0,96553.0,0.24839025]
[1735201132435,0.00323976,96562.0,96553.0,0.24839025]
[1735201132639,0.00323976,96561.0,96551.0,0.42669025]
[1735201132838,0.00323976,96560.0,96551.0,0.42669025]
[1735201133137,0.00323976,96559.0,96551.0,0.42669025]
[1735201133340,0.00323976,96558.0,96553.0,0.009]
[1735201133538,0.00323976,96557.0,96553.0,0.009]
[1735201133739,0.00323976,96556.0,96553.0,0.009]
[1735201133928,0.001,96563.0,96553.0,0.009]
[1735201133929,0.00323976,96555.0,96553.0,0.009]
[1735201134138,0.001,96563.0,96553.0,0.009]
[1735201134139,0.00323976,96554.0,96553.0,0.009]
[1735201134641,0.00323977,96554.0,96553.0,0.009]
[1735201134835,0.00323977,96554.0,96551.0,0.42745025]
[1735201135039,0.00518364,96566.0,96551.0,0.43569025]
[1735201135040,0.00323977,96553.0,96551.0,0.43569025]
[1735201135243,0.001,96560.0,96551.0,0.43569025]
[1735201135425,0.00323956,96559.0,96551.0,0.42669025]
[1735201135630,0.001,96554.0,96553.0,0.009]
[1735201136135,0.00518324,96566.0,96552.0,0.24839025]
[1735201136335,0.001,96553.0,96552.0,0.24839025]
[1735201137240,0.001,96553.0,96551.0,0.1873]
[1735201138434,0.001,96554.0,96553.0,0.009]
[1735201139036,0.001,96553.0,96551.0,0.1893]
[1735201139432,0.00518342,96566.0,96551.0,0.1803]
[1735201139642,0.001,96554.0,96553.0,0.009]
[1735201139938,0.00423966,96554.0,96553.0,0.009]
[1735201140131,0.001,96553.0,96551.0,0.1893]
[1735201140731,0.001,96553.0,96551.0,0.1873]
[1735201141835,0.001,96553.0,96551.0,0.1893]
[1735201142245,0.01030696,96554.0,96551.0,0.1803]
[1735201142448,0.001,96554.0,96553.0,0.009]
[1735201143139,0.0042397,96554.0,96551.0,0.1803]
[1735201143346,0.001,96553.0,96551.0,0.011]
[1735201143537,0.00323971,96552.0,96551.0,0.011]
[1735201143942,0.00323971,96552.0,96551.0,0.002]
[1735201145242,0.001,96554.0,96551.0,0.002]
[1735201145437,0.00323994,96553.0,96551.0,0.002]
[1735201145638,0.04470294,96553.0,96551.0,0.002]
[1735201145940,0.04147,96537.0,96535.0,0.37127853]
[1735201146245,0.041472,96532.0,96531.0,0.11337908]
[1735201146544,0.041475,96524.0,96523.0,0.11337908]
[1735201146847,0.041478,96517.0,96516.0,0.13600725]
[1735201147142,0.00842498,96517.0,96509.0,0.49212257]
[1735201147344,0.00992971,96516.0,96502.0,0.89399736]
[1735201147645,0.041483,96507.0,96502.0,0.89399736]
[1735201147833,0.041479,96517.0,96502.0,0.89399736]
[1735201148040,0.041479,96517.0,96507.0,0.10307932]
[1735201148236,0.001,96517.0,96509.0,0.042481]
[1735201148849,0.001,96517.0,96509.0,0.001]
[1735201149041,0.001,96517.0,96514.0,0.041479]
[1735201149344,0.002,96517.0,96514.0,0.041479]
[1735201150140,0.002,96517.0,96509.0,0.008]
[1735201150337,0.041479,96515.0,96508.0,0.38186]
[1735201150538,0.04148,96514.0,96508.0,0.3811]
[1735201150739,0.04148,96514.0,96509.0,0.001]
[1735201150941,0.002,96517.0,96509.0,0.001]
[1735201151245,0.002,96517.0,96516.0,5.403e-05]
[1735201151649,0.002,96517.0,96508.0,0.22657066]
[1735201151943,0.002,96517.0,96508.0,0.22757066]
[1735201151944,0.001,96515.0,96508.0,0.22757066]
[1735201152149,0.002,96515.0,96508.0,0.23557066]
[1735201152540,0.01040676,96526.0,96508.0,0.23557066]
[1735201152739,0.12090142,96527.0,96517.0,0.041478]
[1735201153036,0.14997943,96536.0,96516.0,0.10307932]
[1735201153236,0.30889304,96569.0,96526.0,0.10307932]
[1735201153542,0.30889304,96569.0,96518.0,0.041478]
[1735201153543,0.21814063,96555.0,96550.0,0.041464]
[1735201153740,0.21814063,96555.0,96540.0,0.10307932]
[1735201153934,0.21814063,96555.0,96540.0,0.50615864]
[1735201154139,0.26743704,96569.0,96568.0,0.041456]
[1735201154541,0.01049493,96574.0,96559.0,0.10307932]
[1735201154845,0.10307932,96590.0,96560.0,0.10307932]
[1735201155144,0.04468924,96582.0,96565.0,0.041457]
[1735201155364,0.001,96569.0,96565.0,0.041457]
[1735201155534,0.001,96569.0,96559.0,0.006]
[1735201155739,0.04146,96560.0,96559.0,0.006]
[1735201155934,0.04469983,96560.0,96559.0,0.006]
[1735201156138,0.00323983,96560.0,96537.0,0.00155371]
[1735201156340,0.041461,96557.0,96537.0,0.00155371]
[1735201156640,0.041466,96545.0,96537.0,0.00155371]
[1735201156843,0.041464,96551.0,96540.0,0.10307932]
[1735201157038,0.041465,96549.0,96537.0,0.00155371]
[1735201157536,0.10307932,96560.0,96537.0,0.00555371]
[1735201157850,0.041467,96543.0,96537.0,0.004]